fUST/lending_fUST_20240125
["ID","MTS","AMOUNT","RATE_DAILY","PERIOD"]
[312654930,1706139033841,-175.502285,0.00021918,2]
[312654931,1706139033850,-426.10577832,0.00022801,2]
[312654932,1706139033860,-154.86062544,0.00022802,4]
[312654933,1706139033869,-3969.42099078,0.00024574,2]
[312654934,1706139033878,-1644.13843573,0.00024575,5]
[312654935,1706139033887,-380.0,0.00024658,2]
[312654936,1706139033896,-2997.01420292,0.00024828,2]
[312654937,1706139033905,-498.54555384,0.0002496,5]
[312654938,1706139033913,-4724.75315233,0.00025333,2]
[312654939,1706139033923,-7384.14849766,0.00025334,2]
[312654940,1706139033932,-284.85781043,0.00025335,2]
[312654941,1706139033941,-156.89450249,0.00025335,2]
[312654942,1706139033950,-21.93116477,0.00025335,2]
[312654993,1706139038423,-154.86062544,0.00020717,2]
[312654995,1706139038433,-19706.16354589,0.00020719,2]
[312654997,1706139038442,-133.02234918,0.00025335,2]
[312654999,1706139038451,-309.69031278,0.00025335,2]
[312655001,1706139038462,-2104.07287401,0.00025335,2]
[312655003,1706139038471,-154.89162849,0.00025335,2]
[312655005,1706139038481,-267.98689299,0.00025335,2]
[312655007,1706139038490,-262.3367316,0.00025335,2]
[312655009,1706139038499,-2836.67729407,0.00025335,2]
[312655011,1706139038507,-193.33123141,0.00025335,2]
[312655013,1706139038516,-2478.15575317,0.00025335,2]
[312655015,1706139038527,-818.67757888,0.00025335,2]
[312655017,1706139038537,-154.95380821,0.00025335,2]
[312655019,1706139038546,-225.19634411,0.00025335,2]
[312655021,1706139038556,-1741.02914519,0.00025335,2]
[312655023,1706139038565,-198.35421752,0.00025335,2]
[312655025,1706139038575,-644.40876473,0.00025335,2]
[312655027,1706139038584,-11560.2133615,0.00025336,2]
[312655029,1706139038593,-470.80732048,0.00025336,2]
[312655031,1706139038603,-2074.57916651,0.00025336,2]
[312655033,1706139038612,-211.59032414,0.00025337,2]
[312655035,1706139038622,-326.75620635,0.00025337,2]
[312655037,1706139038631,-187.90145299,0.00025337,2]
[312655039,1706139038640,-155.77243121,0.00025337,2]
[312655040,1706139038649,-202.89749106,0.00025337,2]
[312655041,1706139038658,-309.32455563,0.00025337,2]
[312655042,1706139038667,-156.54818831,0.00025337,2]
[312655043,1706139038676,-11724.55601252,0.00025337,2]
[312655044,1706139038685,-1320.80319943,0.00025337,2]
[312655045,1706139038694,-301.93072688,0.00025337,2]
[312655046,1706139038703,-521.58899704,0.00025337,2]
[312655048,1706139038714,-685.07842528,0.00025337,2]
[312655050,1706139038723,-154.87609912,0.00025337,2]
[312655052,1706139038732,-155.1108103,0.00025337,2]
[312655054,1706139038741,-236.6961873,0.00025338,2]
[312655066,1706139038841,-6250.3041234,0.00025338,2]
[312655068,1706139038850,-500.0,0.00025338,2]
[312655070,1706139038859,-500.0,0.00025338,2]
[312655072,1706139038868,-500.0,0.00025338,2]
[312655074,1706139038878,-500.0,0.00025338,2]
[312655076,1706139038887,-500.0,0.00025338,2]
[312655078,1706139038896,-500.0,0.00025338,2]
[312655080,1706139038906,-500.0,0.00025338,2]
[312655082,1706139038915,-500.0,0.00025338,2]
[312655084,1706139038924,-500.0,0.00025338,2]
[312655086,1706139038933,-500.0,0.00025338,2]
[312655088,1706139038942,-500.0,0.00025338,2]
[312655090,1706139038950,-500.0,0.00025338,2]
[312655092,1706139038961,-500.0,0.00025338,2]
[312655094,1706139038970,-500.0,0.00025338,2]
[312655096,1706139038979,-500.0,0.00025338,2]
[312655098,1706139038988,-500.0,0.00025338,2]
[312655100,1706139038997,-500.0,0.00025338,2]
[312655102,1706139039006,-500.0,0.00025338,2]
[312655104,1706139039015,-500.0,0.00025338,2]
[312655106,1706139039024,-500.0,0.00025338,2]
[312655108,1706139039033,-500.0,0.00025338,2]
[312655110,1706139039043,-500.0,0.00025338,2]
[312655112,1706139039052,-500.0,0.00025338,2]
[312655114,1706139039062,-500.0,0.00025338,2]
[312655116,1706139039071,-500.0,0.00025338,2]
[312655118,1706139039081,-500.0,0.00025338,2]
[312655120,1706139039090,-338.31842393,0.00025338,2]
[312655122,1706139039099,-500.0,0.00025338,2]
[312655124,1706139039108,-500.0,0.00025338,2]
[312655126,1706139039117,-401.58995264,0.00025338,2]
[312655128,1706139039126,-500.0,0.00025338,2]
[312655130,1706139039135,-466.08217038,0.00025338,2]
[312655132,1706139039147,-500.0,0.00025338,2]
[312655134,1706139039156,-500.0,0.00025338,2]
[312655136,1706139039166,-500.0,0.00025338,2]
[312655138,1706139039175,-500.0,0.00025338,2]
[312655140,1706139039184,-300.0,0.00025338,2]
[312655142,1706139039194,-500.0,0.00025338,2]
[312655144,1706139039202,-500.0,0.00025338,2]
[312655146,1706139039212,-500.0,0.00025338,2]
[312655148,1706139039221,-500.0,0.00025338,2]
[312655150,1706139039230,-500.0,0.00025338,2]
[312655152,1706139039239,-500.0,0.00025338,2]
[312655154,1706139039248,-500.0,0.00025338,2]
[312655156,1706139039257,-553.99871468,0.00025338,2]
[312655158,1706139039266,-500.0,0.00025338,2]
[312655160,1706139039275,-500.0,0.00025338,2]
[312655162,1706139039284,-606.35981057,0.00025338,2]
[312655164,1706139039293,-500.0,0.00025338,2]
[312655166,1706139039302,-500.0,0.00025338,2]
[312655168,1706139039312,-500.0,0.00025338,2]
[312655170,1706139039321,-500.0,0.00025338,2]
[312655172,1706139039330,-500.0,0.00025338,2]
[312655174,1706139039339,-491.52054259,0.00025338,2]
[312655176,1706139039348,-500.0,0.00025338,2]
[312655178,1706139039357,-500.0,0.00025338,2]
[312655179,1706139039366,-500.0,0.00025338,2]
[312655181,1706139039376,-500.0,0.00025338,2]
[312655183,1706139039386,-500.0,0.00025338,2]
[312655185,1706139039396,-500.0,0.00025338,2]
[312655187,1706139039405,-500.0,0.00025338,2]
[312655189,1706139039414,-584.57960598,0.00025338,2]
[312655191,1706139039423,-500.0,0.00025338,2]
[312655193,1706139039432,-500.0,0.00025338,2]
[312655195,1706139039441,-500.0,0.00025338,2]
[312655197,1706139039450,-500.0,0.00025338,2]
[312655199,1706139039460,-500.0,0.00025338,2]
[312655201,1706139039469,-500.0,0.00025338,2]
[312655203,1706139039478,-500.0,0.00025338,2]
[312655205,1706139039487,-402.71428982,0.00025338,2]
[312655207,1706139039496,-500.0,0.00025338,2]
[312655209,1706139039505,-500.0,0.00025338,2]
[312655211,1706139039514,-500.0,0.00025338,2]
[312655213,1706139039523,-500.0,0.00025338,2]
[312655214,1706139039536,-500.0,0.00025338,2]
[312655216,1706139039545,-500.0,0.00025338,2]
[312655218,1706139039554,-500.0,0.00025338,2]
[312655220,1706139039564,-500.0,0.00025338,2]
[312655222,1706139039574,-518.00745588,0.00025338,2]
[312655224,1706139039583,-81207.38465248,0.00025339,2]
[312655226,1706139039593,-500.0,0.0002534,2]
[312655228,1706139039602,-500.0,0.0002534,2]
[312655230,1706139039612,-500.0,0.0002534,2]
[312655232,1706139039620,-500.0,0.0002534,2]
[312655234,1706139039630,-169.16418008,0.0002534,2]
[312655236,1706139039640,-620.66988602,0.0002534,2]
[312655238,1706139039649,-500.0,0.0002534,2]
[312655240,1706139039659,-500.0,0.0002534,2]
[312655242,1706139039668,-500.0,0.0002534,2]
[312655244,1706139039678,-327.12170968,0.0002534,2]
[312655247,1706139039688,-500.0,0.0002534,2]
[312655249,1706139039697,-500.0,0.0002534,2]
[312655251,1706139039706,-500.0,0.0002534,2]
[312655252,1706139039716,-500.0,0.0002534,2]
[312655254,1706139039725,-262.56205314,0.00025341,2]
[312655256,1706139039734,-6052.95891689,0.00025341,2]
[312655258,1706139039743,-57660.34419888,0.00025341,2]
[312655260,1706139039753,-29744.53530437,0.00025341,2]
[312655262,1706139039762,-7404.8671245,0.00025341,2]
[312655264,1706139039771,-500.0,0.00027397,2]
[312655266,1706139039780,-500.0,0.00027534,2]
[312655268,1706139039790,-391.46118265,0.00028375,2]
[312655270,1706139039801,-1942.40988753,0.00029,2]
[312655272,1706139039810,-154.86062544,0.0003,4]
[312655274,1706139039821,-139234.85869816,0.0003,4]
[312655276,1706139039830,-231.21398044,0.0003,4]
[312655278,1706139039839,-208.4755949,0.00030082,2]
[312655280,1706139039849,-169.122159,0.00030137,2]
[312655282,1706139039859,-158.273752,0.00030137,2]
[312655284,1706139039869,-169.122159,0.0003092,2]
[312655286,1706139039879,-4729.74865783,0.00030998,4]
[312655288,1706139039889,-289.86304104,0.00030998,4]
[312655290,1706139039898,-850.30063575,0.00030998,4]
[312655292,1706139039907,-178.19682148,0.00030998,4]
[312655294,1706139039917,-154.92253873,0.00030998,4]
[312655296,1706139039926,-323.13003236,0.00030998,4]
[312655298,1706139039935,-154.95348919,0.00030998,4]
[312655300,1706139039945,-2196.43554395,0.00030998,2]
[312655302,1706139039954,-2816.00267882,0.00030998,4]
[312655304,1706139039964,-175.26340057,0.00030998,4]
[312655306,1706139039975,-154.86062544,0.00030998,4]
[312655308,1706139039984,-876.60031792,0.00030998,4]
[312655310,1706139039993,-526.86671642,0.00030998,4]
[312655312,1706139040002,-160.92026609,0.00030998,4]
[312655314,1706139040012,-237.74153663,0.00030998,4]
[312655316,1706139040021,-243.2070347,0.00030998,4]
[312655318,1706139040030,-170.92363548,0.00030998,4]
[312655320,1706139040039,-342.68202695,0.00030999,4]
[312655322,1706139040048,-154.92253873,0.00030999,4]
[312655324,1706139040057,-238.14143998,0.00031,4]
[312655326,1706139040066,-169.122159,0.00031703,2]
[312655328,1706139040076,-391379.25992679,0.00032,15]
[312655330,1706139040085,-154.86062544,0.00032,4]
[312655332,1706139040094,-169.122159,0.00032485,2]
[312655334,1706139040103,-169.122159,0.00033268,2]
[312655336,1706139040111,-1551.37467146,0.00034,3]
[312655338,1706139040121,-169.122159,0.00034051,2]
[312655340,1706139040130,-177.0772953,0.00034247,2]
[312655342,1706139040139,-169.122159,0.00034834,2]
[312655344,1706139040148,-333.08255178,0.00035,4]
[312655346,1706139040156,-2085.08363542,0.00035,4]
[312655348,1706139040165,-4593.06068613,0.000355,14]
[312655350,1706139040175,-169.122159,0.00035616,2]
[312655352,1706139040185,-163.36062122,0.00035813,7]
[312655354,1706139040194,-154.86062544,0.00036,4]
[312655356,1706139040203,-169.122159,0.00036399,2]
[312655358,1706139040212,-30396.95170688,0.00037,2]
[312655360,1706139040221,-169.122159,0.00037182,2]
[312655362,1706139040230,-169.122159,0.00037965,2]
[312655364,1706139040239,-11759.33516536,0.00038,10]
[312655366,1706139040252,-8900.542232,0.00038,10]
[312655368,1706139040261,-2045.63213632,0.00038,4]
[312655371,1706139040277,-1633.75086509,0.00038,4]
[312655373,1706139040286,-2000.0,0.00038,4]
[312655375,1706139040295,-5000.0,0.0003811,7]
[312655377,1706139040304,-744.19914574,0.000385,4]
[312655379,1706139040313,-169.122159,0.00038747,2]
[312655381,1706139040322,-3000.0,0.00039,7]
[312655383,1706139040331,-169.122159,0.0003953,2]
[312655385,1706139040340,-15998.30261378,0.00039798,4]
[312655387,1706139040349,-24748.67605988,0.000399,2]
[312655389,1706139040357,-2375.88539167,0.0003999,4]
[312655391,1706139040366,-32015.56992624,0.0004,4]
[312655392,1706139040375,-150.0,0.0004,27]
[312655395,1706139040385,-1280.40356402,0.0004,4]
[312655396,1706139040394,-154.86062544,0.0004,4]
[312655398,1706139040403,-169.122159,0.00040313,2]
[312655399,1706139040412,-214.023404,0.00040924,2]
[312655401,1706139040421,-160.598299,0.00040924,2]
[312655403,1706139040430,-190.489236,0.00040924,2]
[312655405,1706139040439,-1141.2594,0.00041,6]
[312655407,1706139040448,-463.34061081,0.00041,2]
[312655409,1706139040457,-251.4321,0.00041069,7]
[312655411,1706139040467,-250.0,0.00041095,7]
[312655413,1706139040476,-500.0,0.00041095,2]
[312655415,1706139040485,-169.122159,0.00041096,2]
[312655418,1706139040493,-150.44946158,0.00041326,30]
[312655429,1706139040570,-152.20431378,0.00041729,30]
[312655431,1706139040580,-155.54233736,0.00041732,30]
[312655432,1706139040589,-152.20431378,0.00041758,30]
[312655434,1706139040599,-190.489236,0.00041947,30]
[312655436,1706139040608,-152.20431378,0.00041958,30]
[312655438,1706139040618,-500.0,0.00042465,7]
[312655440,1706139040627,-150.10168146,0.00042803,30]
[312655442,1706139040636,-190.489236,0.0004297,30]
[312655444,1706139040645,-152.20431378,0.00043128,30]
[312655446,1706139040654,-155.54233736,0.00043515,30]
[312655448,1706139040663,-208.88,0.000436,4]
[312655449,1706139040672,-156.59077763,0.00043606,30]
[312655451,1706139040682,-155.0,0.0004365,2]
[312655452,1706139040691,-750.0,0.00043835,7]
[312655454,1706139040700,-1000.0,0.00044258,7]
[312655456,1706139040709,-1000.0,0.0004429,7]
[312655457,1706139040718,-150.84915085,0.00044331,2]
[312655458,1706139040728,-1000.0,0.00044336,7]
[312655459,1706139040737,-1000.0,0.00044349,7]
[312655460,1706139040747,-1125.18237575,0.00044372,7]
[312655462,1706139040755,-155.54233736,0.00044408,30]
[312655464,1706139040764,-1000.0,0.00044408,7]
[312655465,1706139040774,-1000.0,0.00044411,7]
[312655467,1706139040783,-31.63177473,0.00044434,7]
[312655469,1706139040796,-968.36822527,0.00044434,7]
[312655470,1706139040805,-1000.0,0.00044484,7]
[312655471,1706139040814,-432.35420835,0.00044495,15]
[312655473,1706139040822,-4335.36422548,0.00044495,15]
[312655475,1706139040831,-2124.6096646,0.00044495,15]
[312655477,1706139040840,-167.76907828,0.00044495,15]
[312655479,1706139040850,-3526.12720214,0.00044495,15]
[312655481,1706139040859,-528.91908032,0.00044495,15]
[312655483,1706139040868,-331.5332253,0.00044495,15]
[312655485,1706139040877,-1000.0,0.00044497,7]
[312655487,1706139040886,-150.364464,0.000445,2]
[312655489,1706139040895,-679.71377977,0.00044512,4]
[312655491,1706139040904,-500.0,0.00044514,9]
[312655492,1706139040913,-500.0,0.00044514,9]
[312655494,1706139040922,-151.0,0.0004465,7]
[312655496,1706139040931,-151.0,0.0004465,7]
[312655498,1706139040940,-151.0,0.0004465,7]
[312655500,1706139040949,-235.612002,0.0004465,7]
[312655502,1706139040958,-218.065054,0.0004465,7]
[312655504,1706139040967,-709.444791,0.0004465,7]
[312655506,1706139040976,-709.444791,0.0004465,7]
[312655508,1706139040986,-709.444791,0.0004465,7]
[312655510,1706139040995,-709.444791,0.0004465,7]
[312655512,1706139041004,-709.444791,0.0004465,7]
[312655514,1706139041012,-709.444791,0.0004465,7]
[312655516,1706139041021,-709.444791,0.0004465,7]
[312655517,1706139041031,-709.444791,0.0004465,7]
[312655519,1706139041040,-709.444791,0.0004465,7]
[312655521,1706139041050,-709.444791,0.0004465,7]
[312655523,1706139041059,-709.444791,0.0004465,7]
[312655525,1706139041068,-709.444791,0.0004465,7]
[312655527,1706139041077,-709.444791,0.0004465,7]
[312655529,1706139041086,-709.444791,0.0004465,7]
[312655531,1706139041095,-709.444791,0.0004465,7]
[312655533,1706139041104,-709.444791,0.0004465,7]
[312655535,1706139041113,-779.953799,0.0004465,7]
[312655537,1706139041122,-779.953799,0.0004465,7]
[312655539,1706139041131,-779.953799,0.0004465,7]
[312655541,1706139041140,-779.953799,0.0004465,7]
[312655543,1706139041150,-779.953799,0.0004465,7]
[312655545,1706139041159,-779.953799,0.0004465,7]
[312655547,1706139041168,-779.953799,0.0004465,7]
[312655549,1706139041179,-779.953799,0.0004465,7]
[312655551,1706139041188,-779.953799,0.0004465,7]
[312655553,1706139041197,-779.953799,0.0004465,7]
[312655555,1706139041207,-779.953799,0.0004465,7]
[312655557,1706139041217,-779.953799,0.0004465,7]
[312655559,1706139041226,-779.953799,0.0004465,7]
[312655561,1706139041235,-779.953799,0.0004465,7]
[312655563,1706139041244,-779.953799,0.0004465,7]
[312655565,1706139041253,-779.953799,0.0004465,7]
[312655567,1706139041261,-151.0,0.0004465,7]
[312655569,1706139041271,-151.0,0.0004465,7]
[312655571,1706139041280,-1148.11,0.00044657,31]
[312655573,1706139041290,-151.0,0.00044693,7]
[312655575,1706139041299,-151.0,0.00044693,7]
[312655576,1706139041308,-151.0,0.00044693,7]
[312655578,1706139041317,-158.926865,0.00044693,7]
[312655580,1706139041327,-6502.290573,0.00044693,7]
[312655582,1706139041335,-6502.290573,0.00044693,7]
[312655584,1706139041344,-6502.290573,0.00044693,7]
[312655586,1706139041353,-6502.290573,0.00044693,7]
[312655588,1706139041363,-6502.290573,0.00044693,7]
[312655590,1706139041371,-6502.290573,0.00044693,7]
[312655592,1706139041380,-6502.290573,0.00044693,7]
[312655594,1706139041390,-6502.290573,0.00044693,7]
[312655596,1706139041399,-6502.290573,0.00044693,7]
[312655598,1706139041408,-6502.290573,0.00044693,7]
[312655600,1706139041417,-6502.290573,0.00044693,7]
[312655602,1706139041426,-6502.290573,0.00044693,7]
[312655604,1706139041435,-6502.290573,0.00044693,7]
[312655606,1706139041444,-6502.290573,0.00044693,7]
[312655608,1706139041453,-6502.290573,0.00044693,7]
[312655609,1706139041463,-6502.290573,0.00044693,7]
[312655611,1706139041472,-151.0,0.00044693,7]
[312655613,1706139041481,-151.0,0.00044693,7]
[312655616,1706139041492,-151.0,0.00044693,7]
[312655617,1706139041502,-151.0,0.00044693,7]
[312655619,1706139041511,-151.0,0.00044693,7]
[312655621,1706139041522,-151.0,0.00044693,7]
[312655623,1706139041532,-259.0,0.00044693,7]
[312655625,1706139041541,-151.0,0.00044693,7]
[312655627,1706139041550,-151.0,0.00044693,7]
[312655629,1706139041559,-151.0,0.00044693,7]
[312655631,1706139041569,-151.0,0.00044693,7]
[312655633,1706139041578,-151.0,0.00044693,7]
[312655635,1706139041588,-151.0,0.00044693,7]
[312655637,1706139041597,-151.0,0.00044693,7]
[312655639,1706139041607,-283.142045,0.00044693,7]
[312655641,1706139041616,-500.0,0.00044699,60]
[312655643,1706139041627,-167.29104502,0.00044699,60]
[312655645,1706139041636,-206.78042742,0.00044699,60]
[312655647,1706139041645,-500.0,0.00044699,60]
[312655649,1706139041655,-584.57960598,0.00044699,60]
[312655651,1706139041664,-500.0,0.00044699,60]
[312655653,1706139041674,-500.0,0.00044699,60]
[312655655,1706139041682,-200.0,0.00044699,60]
[312655657,1706139041691,-500.0,0.00044699,60]
[312655659,1706139041700,-254.50186397,0.00044699,60]
[312655661,1706139041710,-500.0,0.00044699,60]
[312655663,1706139041719,-500.0,0.00044699,60]
[312655665,1706139041728,-263.49967867,0.00044699,60]
[312655667,1706139041737,-500.0,0.00044699,60]
[312655669,1706139041747,-475.39748816,0.00044699,60]
[312655671,1706139041756,-491.5205426,0.00044699,60]
[312655673,1706139041766,-500.0,0.00044699,60]
[312655675,1706139041776,-401.58995264,0.00044699,60]
[312655677,1706139041785,-396.1449015,0.00044699,60]
[312655679,1706139041795,-622.88013565,0.00044699,60]
[312655681,1706139041808,-500.0,0.00044699,60]
[312655683,1706139041818,-600.67857245,0.00044699,60]
[312655685,1706139041827,-500.0,0.00044699,60]
[312655687,1706139041836,-500.0,0.00044699,60]
[312655689,1706139041845,-500.0,0.00044699,60]
[312655691,1706139041855,-68280.52343866,0.00044709,7]
[312655693,1706139041864,-101179.21467391,0.00044709,7]
[312655695,1706139041874,-197012.40760285,0.00044709,7]
[312655861,1706139043473,-2529.79,0.00025329,3]
[312655863,1706139043483,-155.03436087,0.00025336,2]
[312655865,1706139043493,-250.0,0.00044649,7]
[312655867,1706139043502,-157108.06557609,0.00044709,7]
[312656012,1706139046510,-2155.37244949,0.00044692,2]
[312656014,1706139046526,-300.0,0.00044692,2]
[312656213,1706140233769,-436.94000175,0.00023278,2]
[312656218,1706140233825,-251.19841287,0.00023278,2]
[312656221,1706140233834,-154.86062544,0.00023279,2]
[312656224,1706140233843,-1484.61502997,0.0002328,2]
[312656227,1706140233852,-154.86062544,0.0002328,2]
[312656230,1706140233861,-154.86062544,0.00023281,4]
[312656233,1706140233870,-1267.12305076,0.00023281,2]
[312656236,1706140233879,-8335.02109899,0.00023282,2]
[312656395,1706140238568,-3210.05837671,0.00023279,2]
[312656403,1706140238627,-1277.17191002,0.00023279,2]
[312656618,1706140241696,-3475.11062442,0.00023279,2]
[312656621,1706140241706,-16564.97890101,0.00023282,2]
[312656622,1706140241716,-272.6306295,0.00024214,2]
[312656624,1706140241725,-678.88445844,0.00024215,2]
[312656626,1706140241734,-3969.42099078,0.00024216,2]
[312656628,1706140241744,-3000.0,0.00024219,2]
[312656629,1706140241753,-13222.2295784,0.00024685,2]
[312656630,1706140241762,-166.666666,0.00024942,2]
[312656631,1706140241771,-163.36062122,0.00026028,2]
[312656633,1706140241780,-2017.65297229,0.00026128,2]
[312656635,1706140241789,-14515.96869834,0.00026128,2]
[312656637,1706140241800,-10538.92213536,0.00026128,2]
[312656639,1706140241810,-200.0,0.00026638,15]
[312656641,1706140241819,-210.0,0.00028604,2]
[312656643,1706140241828,-225.21986699,0.00028604,2]
[312656644,1706140241837,-154.86062544,0.00030136,4]
[312656645,1706140241935,-169.122159,0.00030137,2]
[312656646,1706140241944,-169.122159,0.00031703,2]
[312656647,1706140241953,-169.122159,0.00033268,2]
[312656648,1706140241963,-169.122159,0.00034834,2]
[312656649,1706140241974,-154.86062544,0.00036,4]
[312656650,1706140241984,-169.122159,0.00036399,2]
[312656651,1706140241995,-169.122159,0.00037965,2]
[312656652,1706140242005,-10972.63336166,0.00038272,5]
[312656766,1706140246757,-1175.22511796,0.00023278,2]
[312657232,1706141432782,-170.98714659,0.00023083,2]
[312657233,1706141432792,-154.86062544,0.00023084,4]
[312657235,1706141432802,-272.6306295,0.00023085,2]
[312657236,1706141432811,-154.86062544,0.00023085,2]
[312657238,1706141432821,-3969.42099078,0.00023088,2]
[312657240,1706141432830,-165.919722,0.00023091,2]
[312657241,1706141432840,-208.6110557,0.00023848,2]
[312657242,1706141432850,-14672.2717772,0.0002437,2]
[312657504,1706141437830,-437.90229,0.00023087,2]
[312657506,1706141437841,-6394.54282399,0.00023087,2]
[312657807,1706141440876,-1227.23720884,0.00023087,2]
[312658186,1706141443554,-70.67957918,0.00023087,2]
[312658189,1706141443564,-1773.36421009,0.0002437,2]
[312658503,1706141445954,-407.50941287,0.0002437,2]
[312658505,1706141445966,-6534.68185641,0.0002437,2]
[312668416,1706142169186,200.0,0.00021815,7]
[312668427,1706142501639,24900.0,0.00017682,2]
[312668431,1706142533301,3486.61806957,0.00018303,2]
[312668458,1706142631915,-526.86671642,0.00018661,2]
[312668460,1706142631925,-161.07323855,0.00018662,2]
[312668462,1706142631934,-278.97104503,0.00018662,2]
[312668464,1706142631945,-67265.32891238,0.00018662,2]
[312668511,1706142638014,-154.97435718,0.0001866,2]
[312668513,1706142638024,-1741.4785695,0.00018661,2]
[312668515,1706142638033,-13678.51042422,0.00018662,2]
[312668517,1706142638043,-15224.22613047,0.00018662,2]
[312668519,1706142638052,-199.30151643,0.00018663,2]
[312668521,1706142638062,-154.86062544,0.00018663,3]
[312668523,1706142638071,-18909.22401992,0.00018663,2]
[312668525,1706142638079,-4104.72771243,0.00018663,2]
[312668527,1706142638088,-4815.22334348,0.00018663,2]
[312668529,1706142638098,-8130.36190201,0.00018664,2]
[312668531,1706142638107,-2035.08647523,0.00018664,2]
[312668533,1706142638117,-154.86062544,0.00018664,2]
[312668535,1706142638126,-170.98714659,0.00018664,2]
[312668537,1706142638135,-272.6306295,0.00018664,2]
[312668539,1706142638145,-19871.73595374,0.00018665,2]
[312668541,1706142638153,-181.02826495,0.00018665,2]
[312668543,1706142638163,-522.24897159,0.00018666,2]
[312668545,1706142638172,-8764.16069463,0.00018666,2]
[312668547,1706142638181,-262.41441764,0.00018668,2]
[312668549,1706142638191,-154.86062544,0.00018668,2]
[312668551,1706142638200,-973.3974102,0.00018688,2]
[312668553,1706142638209,-155.1108103,0.00019714,2]
[312668555,1706142638218,-163.80645136,0.00019723,2]
[312668557,1706142638227,-938.03984623,0.00019836,2]
[312668559,1706142638236,-151.48485454,0.0002,2]
[312668561,1706142638245,-850.57862657,0.0002,2]
[312668563,1706142638254,-154.86062544,0.00020014,2]
[312668565,1706142638263,-323.23544643,0.00020015,2]
[312668567,1706142638273,-684.3185712,0.00020017,2]
[312668569,1706142638281,-2104.07287401,0.00020833,2]
[312668571,1706142638290,-2074.57916651,0.00020833,2]
[312668573,1706142638300,-470.80732048,0.00020833,2]
[312668575,1706142638308,-475.68781302,0.00020834,2]
[312668577,1706142638317,-500.0,0.00020834,2]
[312668579,1706142638325,-500.0,0.00020834,2]
[312668581,1706142638334,-500.0,0.00020834,2]
[312668583,1706142638343,-500.0,0.00020834,2]
[312668585,1706142638351,-500.0,0.00020834,2]
[312668587,1706142638362,-500.0,0.00020834,2]
[312668588,1706142638370,-500.0,0.00020834,2]
[312668590,1706142638379,-500.0,0.00020834,2]
[312668592,1706142638388,-500.0,0.00020834,2]
[312668594,1706142638397,-500.0,0.00020834,2]
[312668597,1706142638407,-500.0,0.00020834,2]
[312668598,1706142638415,-314.4059647,0.00020834,2]
[312668600,1706142638425,-500.0,0.00020834,2]
[312668602,1706142638434,-500.0,0.00020834,2]
[312668604,1706142638443,-500.0,0.00020834,2]
[312668606,1706142638452,-500.0,0.00020834,2]
[312668608,1706142638461,-500.0,0.00020834,2]
[312668610,1706142638471,-500.0,0.00020834,2]
[312668612,1706142638480,-500.0,0.00020834,2]
[312668614,1706142638489,-500.0,0.00020834,2]
[312668616,1706142638498,-500.0,0.00020834,2]
[312668618,1706142638507,-500.0,0.00020834,2]
[312668620,1706142638518,-500.0,0.00020834,2]
[312668622,1706142638527,-500.0,0.00020834,2]
[312668624,1706142638536,-500.0,0.00020834,2]
[312668625,1706142638545,-500.0,0.00020834,2]
[312668626,1706142638554,-500.0,0.00020834,2]
[312668627,1706142638563,-506.35981057,0.00020834,2]
[312668628,1706142638572,-500.0,0.00020834,2]
[312668629,1706142638580,-500.0,0.00020834,2]
[312668630,1706142638589,-500.0,0.00020834,2]
[312668631,1706142638598,-500.0,0.00020834,2]
[312668632,1706142638607,-500.0,0.00020834,2]
[312668633,1706142638616,-500.0,0.00020834,2]
[312668634,1706142638624,-500.0,0.00020834,2]
[312668635,1706142638634,-500.0,0.00020834,2]
[312668636,1706142638643,-500.0,0.00020834,2]